Workbook

Sheet SEPTIEMBRE
B3: REGION V
B4: PEDRO DE MACORIS, REPUBLICA DOMINICANA
B5: PERSONAL SPM
B6: Total de empleados contratado | E6: RNC 430041793
B7: NOMINA CORRESPONDIENTE AL 30 DE SEPTIEMBRE AÑO 2025
B8: AREA SPM
B9: NOMBRE | C9: APELLIDO | D9: CEDULA | E9: NO.CUENTA | F9: CARGO | G9: DEPARTAMENTO | H9: LUGAR PRESTA SERVICIOS | I9: SUELDO BRUTO | J9: S/S | K9: SFS | L9: ISR | M9: D/A | N9: SUELDO NETO | O9: FECHA
A10: 1 | B10: PAULINO | C10: LUIS | D10: 024-0008005-3 | E10: 200011101179105 | F10: Vigilante | G10: Area SPM | H10: Clinica Quisqueya | I10: 5,000.00 | J10: =I10*2.87% -> 143.50 | K10: =I10*3.04% -> 152.00 | N10: =I10-J10-K10-M10 -> 4,704.50 | O10: 2007-05-08
A11: =A10+1 -> 2 | B11: PETRONILA ALT. | C11: PAYANO | D11: 023-0049840-5 | E11: 200011101178533 | F11: Conserje | G11: Area SPM | H11: Clinica Angelina | I11: 5,000.00 | J11: 0.00 | K11: 0.00 | M11: 0.00 | N11: 5,000.00 | O11: 2007-01-02
A12: =A11+1 -> 3 | B12: RUTH PRISCILA | C12: PEREZ | D12: 024-0009931-9 | E12: 200011101179118 | F12: Aux. Farmacia | G12: Area SPM | H12: Clinica Quisqueya | I12: 18,400.00 | J12: =I12*2.87% -> 528.08 | K12: =I12*3.04% -> 559.36 | M12: 0.00 | N12: 17,312.56 | O12: 2007-03-01
A13: 4 | B13: MARCELINO | C13: GUZMAN | D13: 024-0002608-0 | E13: 200011101179079 | F13: Sereno | G13: Area SPM | H13: Clinica El Puerto | I13: 5,000.00 | J13: 143.50 | K13: 152.00 | N13: 4,704.50 | O13: 2007-06-25
A14: 5 | B14: ANA MERCEDES | C14: DE LA CRUZ | D14: 023-0072812-4 | E14: 200011101178630 | F14: Conserje | G14: Area SPM | H14: Clinica Barrio Blanco | I14: 5,000.00 | J14: 143.50 | K14: 152.00 | N14: 4,704.50 | O14: 2007-06-01
A15: 6 | B15: FRANCISCA | C15: POMUCENO SORIANO | D15: 024-0004970-2 | E15: 200011101179095 | F15: Conserje | G15: Area SPM | H15: Clinica Guayabal | I15: 5,000.00 | J15: =I15*2.87% -> 143.50 | K15: =I15*3.04% -> 152.00 | N15: 4,704.50 | O15: 2007-07-02
A16: 7 | B16: SIMONA | C16: PEGUERO HERNANDEZ | D16: 024-0012760-7 | E16: 200011101179134 | F16: Conserje | G16: Area SPM | H16: Clinica Honduras | I16: 5,000.00 | J16: 143.50 | K16: 152.00 | N16: 4,704.50 | O16: 2007-07-02
A17: 8 | B17: LEONEL | C17: DE LA CRUZ HERNANDEZ | D17: 024-0013605-3 | E17: 200011101179150 | F17: Sereno | G17: Area SPM | H17: Clinica Honduras | I17: 5,000.00 | J17: 143.50 | K17: 152.00 | N17: =I17-J17-K17-M17 -> 4,704.50 | O17: 2007-07-02
A18: 9 | B18: JUAN JOSE | C18: JUAN JEAN | D18: 023-0137052-0 | E18: 200011101179053 | F18: Sereno | G18: Area SPM | H18: Unap Batey Esperanza | I18: 5,000.00 | J18: 143.50 | K18: 152.00 | N18: 4,704.50 | O18: 2007-07-18
A19: 10 | B19: RAMON A. | C19: PEGUERO AQUINO | D19: 023-0057845-3 | E19: 200011101178591 | F19: Sereno | G19: Area SPM | H19: Unap Angelina | I19: 5,000.00 | J19: 143.50 | K19: 152.00 | N19: 4,704.50 | O19: 2007-07-23
A20: 11 | B20: MARIA DEL C. | C20: LARA MENDEZ | D20: 023-0064326-5 | E20: 200011101180686 | F20: Atencion al Usuario | G20: Area SPM | H20: Clinica Porvenir | I20: 7,000.00 | J20: 200.90 | K20: 212.80 | N20: 6,586.30 | O20: 2007-08-01
A21: 12 | B21: ALEX | C21: ROMBLEY | D21: 023-0126548-0 | E21: 200011101180709 | F21: Sereno | G21: Area SPM | H21: Clinica Porvenir | I21: 8,318.04 | J21: =I21*2.87% -> 238.73 | K21: =I21*3.04% -> 252.87 | N21: 7,826.44 | O21: 2007-09-13
A22: =A21+1 -> 13 | B22: REYNA ISABEL | C22: MORLA DE A. | D22: 023-0066599-5 | E22: 200011101253636 | F22: Bioanalista | G22: Area SPM | H22: Clinica Barrio Lindo | I22: 18,312.00 | J22: =I22*2.87% -> 525.55 | K22: =I22*3.04% -> 556.68 | L22: 0.00 | M22: 0.00 | N22: 17,229.76 | O22: 2008-09-11
A23: 14 | B23: EVA | C23: MATEO FERRERAS | D23: 023-0011428-3 | E23: 200012700173856 | F23: Medico General | G23: Area SPM | H23: UNAP Uasd | I23: 28,657.01 | J23: 822.46 | K23: 871.17 | M23: 0.00 | N23: 26,963.38 | O23: 2007-08-08
A24: 15 | B24: JOSE | C24: CALAZAN CALMONA | D24: 027-0013504-5 | E24: 200011101209570 | F24: Sereno | G24: Area SPM | H24: UNAP las colinas | I24: 5,000.00 | J24: 143.50 | K24: 152.00 | N24: 4,704.50 | O24: 2008-02-21
A25: 16 | B25: BEATRIZ ALT. | C25: SEVERINO | D25: 023-0084459-0 | E25: 200011101224225 | F25: Odontologa | G25: Area SPM | H25: UNAP Barrio Blanco | I25: 24,000.00 | J25: =I25*2.87% -> 688.80 | K25: =I25*3.04% -> 729.60 | M25: 0.00 | N25: 22,581.60 | O25: 2008-03-17
A26: 17 | B26: CARIDAD TODMAN | C26: DE LOS SANTOS | D26: 023-0041126-7 | E26: 200011101224209 | F26: Enfermera Aux. | G26: Area SPM | H26: unap Monte coca | I26: 11,596.60 | J26: =I26*2.87% -> 332.82 | K26: =I26*3.04% -> 352.54 | M26: 0.00 | N26: 10,911.24 | O26: 2008-04-01
A27: 18 | B27: PEDRO | C27: ZORRILLA | D27: 023-0017693-6 | E27: 200011101231865 | F27: Sereno Clinica | G27: Area SPM | H27: UNAP Barrio Blanco | I27: 5,000.00 | J27: =I27*2.87% -> 143.50 | K27: =I27*3.04% -> 152.00 | N27: 4,704.50 | O27: 2008-04-30
A28: 19 | B28: FRANCISCO A | C28: CASTRO R. | D28: 023-0005830-8 | E28: 200011101245945 | F28: Auxiliar de almacen | G28: Area SPM | H28: Almacen Regional | I28: 9,600.00 | J28: =I28*2.87% -> 275.52 | K28: =I28*3.04% -> 291.84 | N28: 9,032.64 | O28: 2008-08-01
A29: 20 | B29: ODILE A. | C29: MILIAN MCCABE | D29: 023-0025423-8 | E29: 200011101253597 | F29: Aux. de Bioanalisis | G29: Area SPM | H29: Unap porvenir | I29: 22,000.00 | J29: =I29*2.87% -> 631.40 | K29: =I29*3.04% -> 668.80 | M29: 1,512.45 | N29: 19,187.35 | O29: 2008-09-01
A30: 21 | B30: JUANA | C30: MORLA POLANCO | D30: 026-0113870-0 | E30: 200011101253733 | F30: Conseje | G30: Area SPM | H30: UNAP Batey Jagual | I30: 5,000.00 | J30: 143.50 | K30: 152.00 | N30: 4,704.50 | O30: 2008-09-01
A31: 22 | B31: ANA JULIA | C31: MENDEZ BRITO | D31: 011-0000744-0 | E31: 200011101253568 | F31: Aux. Enfermera | G31: Area SPM | H31: Unap Evangelina Rodriguez | I31: 13,000.00 | J31: =I31*2.87% -> 373.10 | K31: =I31*3.04% -> 395.20 | L31: 0.00 | M31: 0.00 | N31: 12,231.70 | O31: 2008-10-08
A32: 23 | B32: YVELISSE E. | C32: ASTACIO PEÑA | D32: 023-0003063-8 | E32: 200011101278064 | F32: Conserje | G32: SRS ESTE | H32: Oficina Regional | I32: 8,050.00 | J32: =I32*2.87% -> 231.04 | K32: =I32*3.04% -> 244.72 | L32: 0.00 | M32: 1,512.45 | N32: 6,061.80 | O32: 2009-01-19
A33: 24 | B33: EPIFANIO | C33: CALDERON | D33: 023-0058958-3 | E33: 200011101272633 | F33: Sereno | G33: Area SPM | H33: Clinica Santa fe | I33: 5,000.00 | J33: 143.50 | K33: 152.00 | N33: 4,704.50 | O33: 2009-02-01
A34: 25 | B34: FRANCISCO DE J. | C34: MATICH CASTRO | D34: 023-0028027-4 | E34: 200011101272688 | F34: Auxiliar de almacen | G34: SRS ESTE | H34: Almacen Regional | I34: 9,600.00 | J34: =I34*2.87% -> 275.52 | K34: =I34*3.04% -> 291.84 | N34: 9,032.64 | O34: 2009-02-01
A35: 26 | B35: YERNIS NOEMIS | C35: POCHE F. | D35: 024-0022376-0 | E35: 200011101294556 | F35: Secretaria | G35: Area SPM | H35: clinica Quisqueya | I35: 8,000.00 | J35: 229.60 | K35: 243.20 | N35: 7,527.20 | O35: 2009-08-03
A36: 27 | B36: JOAQUIN | C36: EUSEBIO | D36: 024-0013633-5 | E36: 200011101310155 | F36: Sereno | G36: Area SPM | H36: Clinica Cayacoa | I36: 5,000.00 | J36: 143.50 | K36: 152.00 | N36: 4,704.50 | O36: 2009-12-01
A37: 28 | B37: ROSA SANCHEZ | C37: CABRERA | D37: 023-0109901-2 | E37: 200011101318759 | F37: Conserje | G37: Area SPM | H37: Clinica Porvenir | I37: 8,000.00 | J37: 229.60 | K37: 243.20 | N37: 7,527.20 | O37: 2010-02-01
A38: 29 | B38: BIENVENIDO | C38: BUSTAMANTE GUZMAN | D38: 023-0074695-1 | E38: 200011101358201 | F38: Soporte tecnico | G38: SRS ESTE | H38: Dpto. Publicidad | I38: 6,000.00 | J38: 172.20 | K38: 182.40 | M38: 0.00 | N38: 5,645.40 | O38: 2010-09-01
A39: 30 | B39: VICTOR | C39: NATERA | D39: 024-0006526-0 | E39: 200011101393460 | F39: Sereno | G39: Area SPM | H39: Unap Quisquella | I39: 5,000.00 | J39: 143.50 | K39: 152.00 | N39: 4,704.50 | O39: 2011-03-01
A40: 31 | B40: ESTHER | C40: HINOJOSA | D40: 025-0009474-9 | E40: 200011101419959 | F40: BIONALISTA | G40: Area SPM | H40: CENTO DIAGNOSTICO PORVENIR | I40: 13,312.00 | J40: 382.05 | K40: 404.68 | N40: 12,525.26 | O40: 2012-10-05
A41: 32 | B41: ANA LUISA | C41: JEAN JOSEPH | D41: 027-0039773-6 | E41: 200011101479562 | F41: Conserje | G41: Area SPM | H41: unap Monte coca | I41: 5,000.00 | J41: 143.50 | K41: 152.00 | N41: 4,704.50 | O41: 2012-04-01
A42: 33 | B42: FROILAN | C42: VALDEZ LORENZO | D42: 011-0028087-2 | E42: 200011101571020 | F42: Sonografista | G42: Area SPM | H42: Centro de Diagnostico | I42: 30,000.00 | J42: 861.00 | K42: 912.00 | N42: 28,227.00 | O42: 2013-01-02
A43: 34 | B43: CARY ROSEMARY | C43: SANTANA JABALERA | D43: 023-0117440-1 | E43: 200011101632914 | F43: Enfermera | G43: Area SPM | H43: unap San Martin de Pobre | I43: 8,000.00 | J43: 229.60 | K43: 243.20 | N43: 7,527.20 | O43: 2015-04-01
A44: 35 | B44: MARIA ALT. | C44: POLANCO | D44: 024-0011102-3 | E44: 200011101711592 | F44: Conserje | G44: Area SPM | H44: Unap Quisqueya | I44: 5,000.00 | J44: 143.50 | K44: 152.00 | N44: 4,704.50 | O44: 2014-09-01
A45: 36 | B45: YUDELKIS | C45: FLEMING HODGE | D45: 023-0092307-1 | E45: 200011101711903 | F45: Conserje | G45: Area SPM | H45: unap cachena | I45: 5,000.00 | J45: 143.50 | K45: 152.00 | N45: 4,704.50 | O45: 2014-11-01
A46: 37 | B46: LICETTE | C46: JIMENEZ GARCIA | D46: 023-0020559-4 | E46: 200011101711628 | F46: Conserje | G46: Area SPM | H46: Unap San Martin de Porre | I46: 5,000.00 | J46: 143.50 | K46: 152.00 | N46: 4,704.50 | O46: 2015-05-01
A47: 38 | B47: BASILIA E. | C47: JOSE CIRIACO | D47: 023-0040467-6 | E47: 200011101711796 | F47: Conserje | G47: Area SPM | H47: Unap cachena | I47: 5,000.00 | J47: 143.50 | K47: 152.00 | N47: 4,704.50 | O47: 2015-06-01
A48: 39 | B48: BASILIO | C48: CALDERON MEDINA | D48: 027-0018363-1 | E48: 200011101711631 | F48: Sereno | G48: Area SPM | H48: Unap camara Junior | I48: 5,000.00 | J48: 143.50 | K48: 152.00 | N48: 4,704.50 | O48: 2016-02-02
A49: 40 | B49: NELCIDA YOLADIS | C49: LINARES | D49: 023-0153307-7 | E49: 200011101711851 | F49: Enfermera | G49: Area SPM | H49: Unap brisal | I49: 8,000.00 | J49: 229.60 | K49: 243.20 | N49: 7,527.20 | O49: 2016-01-01
A50: 41 | B50: MARIA | C50: NIEVES MARTE | D50: 023-0084538-1 | E50: 200011101711848 | F50: Conserje | G50: Area SPM | H50: Unap Juan Dolio | I50: 5,000.00 | J50: 143.50 | K50: 152.00 | N50: 4,704.50 | O50: 2014-04-01
A51: 42 | B51: MERCEDES | C51: DANIEL DELGADO | D51: 024-0013600-4 | E51: 200-01-110-173833-9 | F51: Conserje | G51: Area SPM | H51: Unap Hondura | I51: 5,000.00 | J51: =I51*2.87% -> 143.50 | K51: =I51*3.04% -> 152.00 | M51: 0.00 | N51: 4,704.50 | O51: 2014-06-01
A52: 43 | B52: DARIO FRANCISCO | C52: PIE BLAKE | D52: 023-0128257-6 | E52: 200-01-110-176947-6 | F52: Sereno | G52: Area SPM | H52: Unap consuelito | I52: 5,000.00 | J52: 143.50 | K52: 152.00 | N52: 4,704.50 | O52: 2016-07-01
A53: 44 | B53: ALTAGRACIA MEDISA | C53: SEGUIILIS | D53: 023-0077279-1 | E53: 200-01-110-176946-3 | F53: Conserje | G53: Area SPM | H53: Unap consuelito | I53: 5,000.00 | J53: 143.50 | K53: 152.00 | N53: 4,704.50 | O53: 2016-07-01
A54: 45 | B54: ROSMERY | C54: SERRA HERNANDEZ | D54: 023-0138681-5 | E54: 200-01-110-176948-9 | F54: Conserje | G54: Area SPM | H54: Unap Bo. Mexico | I54: 5,000.00 | J54: 143.50 | K54: 152.00 | N54: 4,704.50 | O54: 2017-01-01
A55: 46 | B55: DIONICIO MADRIGAL | C55: GARCIA | D55: 023-0065771-1 | E55: 200-01-960048618-2 | F55: Sereno | G55: Area SPM | H55: UNAP punta de garza | I55: 5,000.00 | J55: 143.50 | K55: 152.00 | N55: 4,704.50 | O55: 2017-07-01
A56: 47 | B56: HECTOR MIGUEL | C56: A.MEDRANO | D56: 023-0012798-8 | E56: 200-01-960-087688-8 | F56: Seguridad | G56: Area SPM | H56: unap Evan Rodriguez | I56: 6,000.00 | J56: 172.20 | K56: 182.40 | N56: 5,645.40 | O56: 2018-04-01
A57: 48 | B57: ESTALIN MARIA | C57: I.MORALES | D57: 024-0026614-0 | E57: 200-01-960-087688-9 | F57: Promotora | G57: Area SPM | H57: unap el puerto | I57: 5,000.00 | J57: 143.50 | K57: 152.00 | N57: 4,704.50 | O57: 2018-04-01
A58: 49 | B58: MARLENYS RAMONA | C58: QUEVEDO ENCARNACION | D58: 011-347480-3 | E58: 200-01-9601807866 | F58: Medico Asistente | G58: Area SPM | H58: UNAP Don Juan | I58: 30,000.00 | J58: 861.00 | K58: 912.00 | N58: 28,227.00 | O58: 2018-05-19
A59: 50 | B59: LICITANIA | C59: MADRIGAL TEJEDA | D59: 024-0016779-3 | E59: 200-01-9601807868 | F59: Conserje | G59: Area SPM | H59: UNAP Quisqueya | I59: 5,000.00 | J59: =I59*2.87% -> 143.50 | K59: =I59*3.04% -> 152.00 | N59: 4,704.50 | O59: 2018-07-01
A60: 51 | B60: VICTOR MANUEL | C60: POLANCO | D60: 023-0022044-5 | E60: 200-01-1101346666 | F60: Medico Asistente | G60: Area SPM | H60: BO.BLANCO | I60: 30,000.00 | J60: 861.00 | K60: 912.00 | N60: 28,227.00 | O60: 2019-04-01
A61: 52 | B61: RAMON | C61: GIL | D61: 023-0007034-5 | E61: 200-01-9603057696 | F61: SERENO | G61: Area SPM | H61: Oficina de area | I61: 5,000.00 | J61: =I61*2.87% -> 143.50 | K61: =I61*3.04% -> 152.00 | N61: 4,704.50 | O61: 2019-04-01 | Z61: =Z60:AA61 -> 0
A62: 53 | B62: JACINTO | C62: ORTEGA | D62: 023-0032092-2 | E62: 200-01-9603057701 | F62: Sereno | G62: Area SPM | H62: Uunap cumayasa | I62: 6,500.00 | J62: =I62*2.87% -> 186.55 | K62: =I62*3.04% -> 197.60 | N62: 6,115.85 | O62: 2019-08-31
A63: 54 | B63: YENI ALT. | C63: GUERRERO MENDEZ | D63: 023-0117014-4 | E63: 200-01-9603057694 | F63: Conserje | G63: Area SPM | H63: Unap aleman | I63: 4,000.00 | N63: 4,000.00 | O63: 2019-10-01
A64: 55 | B64: JEANINA | C64: CASTILLO MUÑOZ | D64: 023-0135235-3 | E64: 200-01-9603057692 | F64: Conserje | G64: Area SPM | H64: Unap barrio Lindo SPM | I64: 8,000.00 | J64: =I64*2.87% -> 229.60 | K64: =I64*3.04% -> 243.20 | N64: 7,527.20 | O64: 2020-01-04
A65: 56 | B65: MASILLON | C65: BENJAMIN | D65: 030-0001180-3 | E65: 200-01-9603140108 | F65: Sereno | G65: SRS ESTE | H65: Unap Margarita | I65: 5,000.00 | J65: 143.50 | K65: =I65*3.04% -> 152.00 | N65: 4,704.50 | O65: 13/10/2020
A66: 57 | B66: EUNICE ELAYNE | C66: DE LA CRUZ CASTRO | D66: 4022056974-9 | E66: 200-01-9603202129 | F66: Aux. de farmacia | G66: Area SPM | H66: Unap pedro justo carrion | I66: 12,000.00 | J66: 344.40 | K66: 364.80 | N66: 11,290.80 | O66: 2020-11-01
A67: 58 | B67: SANTA | C67: MEDINA | D67: 023-0164982-4 | E67: 200-01-960-3396546 | F67: Conserje | G67: Area SPM | H67: UNAP punta pescadora | I67: 5,000.00 | J67: 143.50 | K67: 152.00 | N67: 4,704.50 | O67: 2021-01-01
A68: 59 | B68: PORFIRIO | C68: ZORRILLA | D68: 024-0010756-7 | E68: 200-01-9603356888 | F68: Sereno | G68: SRS-ESTE | H68: Oficina Regional | I68: 10,000.00 | J68: 287.00 | K68: 304.00 | N68: 9,409.00 | O68: 2022-01-02
A69: 60 | B69: ANA | C69: SOLANO | D69: 402-2667422-0 | E69: 200-01-9603403020 | F69: Conserje | G69: Area SPM | H69: Unap punta pescadora | I69: 5,000.00 | J69: 143.50 | K69: =I69*3.04% -> 152.00 | N69: 4,704.50 | O69: 2021-01-02
A70: 61 | B70: ROLANDO GREGORIO | C70: PASCUAL | D70: 027-0034973-7 | E70: 200-01-9603648040 | F70: Sereno | G70: Area SPM | H70: unap Monte coca | I70: 5,000.00 | J70: 143.50 | K70: 152.00 | N70: 4,704.50 | O70: 2021-06-04
A71: 62 | B71: GUILLERMO | C71: BAUTISTA RAMIREZ | D71: 008-0024361-0 | E71: 200-01-9603798315 | F71: Sereno | G71: Area SPM | H71: unap alejandro bass | I71: 5,000.00 | J71: 143.50 | K71: 152.00 | N71: 4,704.50 | O71: 2021-01-05
A72: 63 | B72: SADRACK YRBIN | C72: GUILLEN | D72: 023-0116102-8 | E72: 200-01-9603798311 | F72: Sereno | G72: Area SPM | H72: Placer Bonito | I72: 5,000.00 | J72: 143.50 | K72: 152.00 | N72: 4,704.50 | O72: 2021-01-05
A73: 64 | B73: EMELY PATRICIA | C73: RODRIGUEZ ORTEGA | D73: 402-1141418-6 | E73: 200-01-9603808655 | F73: Asistente de informacion | G73: Area SPM | H73: Gerencia de area | I73: 8,000.00 | J73: 229.60 | K73: 243.20 | N73: 7,527.20 | O73: 2021-01-06
A74: 65 | B74: DOROTEO | C74: DE LA CRUZ CARRASCO | D74: 049-0042143-1 | E74: 200-01-9604126997 | F74: Seguridad | G74: Area SPM | H74: Placer Bonito | I74: 7,000.00 | J74: 200.90 | K74: 212.80 | N74: =I74-J74-K74-M74 -> 6,586.30 | O74: 2021-10-01
A75: 66 | B75: MANOLO | C75: MARTINEZ | D75: 001-1040251-8 | E75: 200-01-9604266453 | F75: Seguridad | G75: Area SPM | H75: Unap Villa Faro | I75: 5,000.00 | J75: 143.50 | K75: 152.00 | N75: 4,704.50 | O75: 2021-09-01
A76: =A75+1 -> 67 | B76: ROBERTO ANTONIO | C76: DE LA CRUZ | D76: 023-0004082-7 | E76: 200-01-9604126996 | F76: Chofer | G76: SRS-ESTE | H76: Dpto. de Odontologia | I76: 18,000.00 | J76: 516.60 | K76: 547.20 | N76: 16,936.20 | O76: 2021-10-01
A77: 68 | B77: JOSE ANIIBAL | C77: FRANCISCO DANIEL | D77: 024-0027728-7 | E77: 200-01-9604334570 | F77: Seguridad | G77: Area SPM | H77: Unap Paloma | I77: 5,000.00 | J77: 143.50 | K77: 152.00 | N77: 4,704.50 | O77: 2021-12-01
A78: 69 | B78: MIGUEL | C78: NUÑEZ MAZARA | D78: 025-0001585-0 | E78: 200-01-9604334568 | F78: Seguridad | G78: SRS-ESTE | H78: Oficina Regional | I78: 7,000.00 | J78: 200.90 | K78: 212.80 | N78: 6,586.30 | O78: 2021-12-01
A79: 70 | B79: HIPOLITO | C79: TOLENTINO | D79: 023-0084491-3 | E79: 960-455925-7 | F79: Seguridad | G79: Area SPM | H79: Unap Villa Faro | I79: 5,000.00 | J79: 143.50 | K79: 152.00 | N79: 4,704.50 | O79: 2022-02-08
A80: 71 | B80: MANUEL DE JESUS | C80: LORA | D80: 023-0020611-3 | E80: 960-532825-5 | F80: Seguridad | G80: SRS-ESTE | H80: Oficina Regional | I80: 7,000.00 | J80: 200.90 | K80: 212.80 | N80: 6,586.30 | O80: 2022-11-01
A81: 72 | B81: DIGNA | C81: ROSARIO JAVIER | D81: 023-0143527-3 | E81: 960540890-2 | F81: Conserje | G81: Area SPM | H81: UNAP Santa Fe | I81: 5,000.00 | J81: 143.50 | K81: 152.00 | N81: 4,704.50 | O81: 2022-12-01
A82: 73 | B82: AIDA | C82: PEREZ NATERA | D82: 011-714807-2 | E82: 960-506293-3 | F82: Conserje | G82: Area SPM | H82: Unap las Goutier | I82: 5,000.00 | J82: 143.50 | K82: 152.00 | N82: 4,704.50 | O82: 2023-03-01
A83: 74 | B83: ESTEBANIA | C83: MELLA WILLIAMS | D83: 402-2020200-2 | E83: 9605815583 | F83: Conserje | G83: Area SPM | H83: CPN IDSS Consuelo | I83: 5,000.00 | J83: 143.50 | K83: 152.00 | N83: 4,704.50 | O83: 2023-04-01
A84: 75 | B84: Darlenys Maria | C84: Santana Jimenez | D84: 402-1112745-7 | F84: Conserje | G84: Area SPM | H84: Unap Santa clara de Asis | I84: 6,000.00 | J84: 172.20 | K84: 182.40 | N84: 5,645.40 | O84: 2023-03-19
A85: 76 | B85: ANTELINA ENEROLIZA | C85: CANDELARIO BAEZ | D85: 402-2555106-4 | E85: 9607302138 | F85: CONSERJE | G85: Area SPM | H85: CENTRO DE DIAGNOSTICO | I85: 5,000.00 | J85: 143.50 | K85: 152.00 | N85: 4,704.50 | O85: 2024-07-10
A86: 77 | B86: ANGELA ALTAGARCIA | C86: VALENZUELA DE ACOSTA | D86: 017-0019300-4 | E86: 9607302139 | F86: CONSERJE | G86: Area SPM | H86: CPN BUEN PASTOR | I86: 5,000.00 | J86: 143.50 | K86: 152.00 | N86: 4,704.50 | O86: 2024-07-11
A87: 78 | B87: PASCUALA ESTEBANIA | C87: MARCHENA SABINO | D87: 023-0030748-1 | E87: 9607302135 | F87: CONSERJE | G87: Area SPM | H87: UNAP LAS PIEDAS(CONANI) | I87: 5,000.00 | J87: 143.50 | K87: 152.00 | N87: 4,704.50 | O87: 2024-07-11
A88: 79 | B88: MARITZA | C88: GONZALEZ FRIAS | D88: 023-0091971-5 | E88: 9607302137 | F88: CONSERJE | G88: Area SPM | H88: Unap Villa Faro | I88: 5,000.00 | J88: 143.50 | K88: 152.00 | N88: 4,704.50 | O88: 2024-07-11
A89: 80 | B89: JULIO | C89: NAVARRO | D89: 027-0011810-8 | E89: 9607302134 | F89: SERENO | G89: Area SPM | H89: UNAP PORVENIR | I89: 5,000.00 | J89: 143.50 | K89: 152.00 | N89: 4,704.50 | O89: 2024-07-12
A90: 81 | B90: CARMEN | C90: BAUTISTA OZORIA | D90: 402-21053685 | E90: 9607564650 | F90: CONSERJE | G90: Area SPM | H90: UNAP JAPON | I90: 5,000.00 | J90: 143.50 | K90: 152.00 | N90: 4,704.50 | O90: 2024-09-02
A91: 82 | B91: MIGUEL | C91: RIVERA DE LA CRUZ | D91: 023-0075532-5 | E91: 9607949205 | F91: SERENO | G91: Area SPM | H91: Unap barrio Lindo SPM | I91: 6,000.00 | J91: 172.20 | K91: 182.40 | N91: 5,645.40 | O91: 2025-01-03
A92: 83 | B92: BETHANIA | C92: VALDEZ MARIA | D92: 023-0142481-4 | E92: 9608049129 | F92: CONSERJE | G92: Area SPM | H92: CPN CAMARA JUNION | I92: 5,000.00 | J92: 143.50 | K92: 152.00 | N92: 4,704.50 | O92: 2025-02-03
A93: 84 | B93: ROSELIS HERENIA | C93: ORTIZ DE LA CRUZ | D93: 023-0026201-7 | E93: 9608049130 | F93: CONSERJE | G93: Area SPM | H93: CPN EL BRISAL | I93: 5,000.00 | J93: 143.50 | K93: 152.00 | N93: 4,704.50 | O93: 2025-02-03
A94: 85 | B94: JUANA LUCRECIA | C94: WECKS DAVID | D94: 023-0124918-7 | E94: 9608049131 | F94: CONSERJE | G94: Area SPM | H94: CPN BATEY ANGELINA | I94: 5,000.00 | J94: 143.50 | K94: 152.00 | N94: 4,704.50 | O94: 2025-02-03
A95: 86 | B95: HECTOR JULIO | C95: CASTILLO ROJAS | D95: 028-0036105-3 | E95: 9608236030 | F95: SERENO | G95: Area SPM | H95: CPN EL BRISAL | I95: 5,000.00 | J95: 143.50 | K95: 152.00 | N95: 4,704.50 | O95: 2025-03-03
A96: 87 | B96: LUISA MARIA | C96: CASTILLO LOUIS | D96: 402-1142182-7 | E96: 9608355091 | F96: CONSERJE | G96: Area SPM | H96: Centro de Diagnostico PORVENIR | I96: 5,000.00 | J96: 143.50 | K96: 152.00 | N96: 4,704.50 | O96: 2025-05-01
A97: 88 | B97: MARIA VANESSA | C97: MEJIAS DE PEÑA | D97: 023-0158598-6 | E97: 9608355092 | F97: CONSERJE | G97: Area SPM | H97: CPN PUNTA DE GANZA | I97: 5,000.00 | J97: 143.50 | K97: 152.00 | N97: 4,704.50 | O97: 2025-05-07
A98: 89 | B98: MARTINA | C98: FRIAS CASTRO | D98: 030-0001612-5 | E98: 9608662002 | F98: CONSERJE | G98: Area SPM | H98: UNAP LA ESPERANZA | I98: 5,000.00 | J98: 143.50 | K98: 152.00 | N98: 4,704.50 | O98: 2025-05-18
B99: Total de empleados contratado | I99: =SUM(I10:I98) -> 700,345.65 | J99: =SUM(J10:J98) -> 19,841.62 | K99: =SUM(K10:K98) -> 21,016.91 | L99: =SUM(L10:L82) -> 0.00 | M99: =SUM(M10:M82) -> 3,024.90 | N99: =SUM(N10:N98) -> 656,462.22
D101: LIC. YUDELKY JABALERA | I101: DR. RICARDO JULIO ROMERO
C102: ADMINISTRADORA | I102: DIRECTOR
B104: REGION V
B105: SAN PEDRO DE MACORIS, REPUBLICA DOMINICANA
B106: RNC 430041793
B107: NOMINA CORRESPONDIENTE AL 30 DE SEPTIEMBRE AÑO 2025
B108: AREA DE HATO MAYOR
B109: NOMBRE | C109: APELLIDO | D109: CEDULA | E109: No. CUENTA | F109: CARGO | G109: DEPARTAMENTO | H109: LUGAR PRESTA SERVICIOS | I109: SUELDO BRUTO | J109: S/S | K109: SFS | L109: ISR | M109: D/A | N109: SUELDO NETO | O109: FECHA
A110: 1 | B110: CARMEN I. | C110: SANTANA P. | D110: 027-0005223-2 | E110: 200011120165796 | F110: Aux. de enfermeria | G110: Area Hato Mayor | H110: Clinica Morquecho | I110: 11,786.00 | J110: =I110*2.87% -> 338.26 | K110: =I110*3.04% -> 358.29 | M110: 0.00 | N110: =I110-J110-K110-M110 -> 11,089.45 | O110: 2006-09-11
A111: =A110+1 -> 2 | B111: SULINDA | C111: MOTA DE SALAS | D111: 100-0007282-6 | E111: 200011120165880 | F111: Conserje | G111: Area Hato Mayor | H111: Clinica Yanigua | I111: 5,000.00 | J111: 143.50 | K111: 152.00 | N111: 4,704.50 | O111: 2007-01-02
A112: =A111+1 -> 3 | B112: DOMINGO A. | C112: PEGUERO LUNA | D112: 100-0002222-7 | E112: 200011120165864 | F112: Viglante | G112: Area Hato Mayor | H112: Clinica Yanigua | I112: 5,000.00 | J112: 143.50 | K112: 152.00 | N112: 4,704.50 | O112: 2007-04-02
A113: 4 | B113: MARIA | C113: NOLASCO | D113: 100-0000817-6 | E113: 200011120166148 | F113: Conserje | G113: Area Hato Mayor | H113: Clinica El valle | I113: 7,000.00 | J113: 143.50 | K113: 152.00 | N113: 6,704.50 | O113: 2007-02-01
A114: 5 | B114: NIURKA A. | C114: AQUINO JAVIER | D114: 100-0000180-9 | E114: 200011120165848 | F114: Tecnica Farmacia | G114: Area Hato Mayor | H114: Hospital el Valle | I114: 11,786.00 | J114: =I114*2.87% -> 338.26 | K114: =I114*3.04% -> 358.29 | M114: 0.00 | N114: =I114-J114-K114-M114 -> 11,089.45 | O114: 2007-08-01
A115: 6 | B115: ZENOVIA | C115: TRINIDAD MARTINEZ | D115: 023-0002962-2 | E115: 200011120165738 | F115: Conserje | G115: Area Hato Mayor | H115: Villa Navarro | I115: 5,000.00 | J115: 143.50 | K115: 152.00 | N115: 4,704.50 | O115: 2007-08-08
A116: 7 | B116: MIGUEL ISABEL | C116: VASQUEZ | D116: 027-0003867-8 | E116: 200011120143844 | F116: Chofer | G116: Area Hato Mayor | H116: Oficina area | I116: 8,000.00 | J116: 229.60 | K116: 243.20 | N116: 7,527.20 | O116: 2010-02-01
A117: 8 | B117: FELIX | C117: CANARIO | D117: 027-0003530-2 | E117: 200011101393509 | F117: Sereno | G117: Area Hato Mayor | H117: Unap Ondina | I117: 5,000.00 | J117: =I117*2.87% -> 143.50 | K117: =I117*3.04% -> 152.00 | N117: =I117-J117-K117 -> 4,704.50 | O117: 2011-03-01
A118: 9 | B118: ELSA AURORA | C118: ZORRILLA | D118: 027-0028845-5 | E118: 200011101479559 | F118: Conserje | G118: Area Hato Mayor | H118: U. Punta de Garza | I118: 5,000.00 | J118: 143.50 | K118: 152.00 | N118: 4,704.50 | O118: 2012-06-01
A119: 10 | B119: CARMEN | C119: DE LA CRUZ TORREZ | D119: 027-0002151-8 | E119: 200011101479546 | F119: Conserje | G119: Area Hato Mayor | H119: Unap La China | I119: 5,000.00 | J119: 143.50 | K119: 152.00 | N119: 4,704.50 | O119: 2012-11-01
A120: 11 | B120: YAQUELIN | C120: CASTILLO MONEGRO | D120: 027-0039926-0 | E120: 200011120292627 | F120: Conserje | G120: Area Hato Mayor | H120: Unap la Javilla | I120: 5,000.00 | J120: 143.50 | K120: 152.00 | N120: 4,704.50 | O120: 2014-07-01
A121: 12 | B121: YARELIS | C121: GOMEZ REYES | D121: 027-0042030-6 | E121: 200011120292588 | F121: Conserje | G121: Area Hato Mayor | H121: Unap la plaza | I121: 5,000.00 | J121: 143.50 | K121: 152.00 | N121: 4,704.50 | O121: 2014-10-01
A122: =A121+1 -> 13 | B122: RUDELANIA | C122: OVALLE VEGA | D122: 023-0110894-6 | E122: 200011120292601 | F122: Medico asistente | G122: Area Hato Mayor | H122: Unap la plaza | I122: 20,000.00 | J122: 574.00 | K122: 608.00 | N122: 18,818.00 | O122: 2014-10-01
A123: =A122+1 -> 14 | B123: RAFAEL | C123: GONZALEZ | D123: 027-0024756-8 | E123: 200011101717211 | F123: Sereno | G123: Area Hato Mayor | H123: Unap km 15 Hato Mayor | I123: 5,000.00 | J123: 143.50 | K123: 152.00 | N123: 4,704.50 | O123: 2015-08-01
A124: 15 | B124: CARINYS MARIEL | C124: LOPEZ | D124: 402-2032423-6 | E124: 200-01-960048617-1 | F124: Promotora de salud | G124: Area Hato Mayor | H124: Oficina area | I124: 6,900.00 | J124: =I124*2.87% -> 198.03 | K124: =I124*3.04% -> 209.76 | M124: 0.00 | N124: =I124-J124-K124-M124 -> 6,492.21 | O124: 2017-10-01
A125: 16 | B125: TAIRA MARIA | C125: GONZALEZ | D125: 100-0004525-1 | E125: 200-01-270-017401-7 | F125: Farmaceutica | G125: Area Hato Mayor | H125: Hospital el valle | I125: 18,400.00 | J125: 528.08 | K125: 559.36 | N125: =I125-J125-K125 -> 17,312.56 | O125: 2018-07-01
A126: 17 | B126: ISRAEL | C126: VASQUEZ ALEXANDER | D126: 138-0007689-8 | E126: 200-01-9603065740 | F126: Sereno | G126: Area Hato Mayor | H126: Gerencia de area | I126: 5,000.00 | J126: 143.50 | K126: 152.00 | N126: =SUM(I126-J126-K126) -> 4,704.50 | O126: 2019-07-01
A127: 18 | B127: GAUDY | C127: CRISOSTOMO | D127: 402-4018039-4 | E127: 200-01-9604269997 | F127: Conjerje | G127: Area Hato Mayor | H127: Unap ondina | I127: 5,000.00 | J127: 143.50 | K127: 152.00 | N127: =SUM(I127-J127-K127) -> 4,704.50 | O127: 2021-10-01
A128: 19 | B128: RICHARD | C128: SANTANA PADILLA | D128: 402-1195588-1 | E128: 200-01-9604716221 | F128: Mensajero | G128: Area Hato Mayor | H128: Gerencia de area | I128: 7,000.00 | J128: 200.90 | K128: 212.80 | N128: =SUM(I128-J128-K128) -> 6,586.30 | O128: 2022-04-01
A129: 20 | B129: FRANCISCA | C129: REYES LOPEZ | D129: 027-0017851-6 | E129: 960-5265769 | F129: Conserje | G129: Area Hato Mayor | H129: Unap Morquecho | I129: 5,000.00 | J129: 143.50 | K129: 152.00 | N129: =SUM(I129-J129-K129) -> 4,704.50 | O129: 2022-10-01
A130: 21 | B130: MAGALIS | C130: JIMENEZ | D130: 027-0030140-7 | E130: 960-5265764 | F130: Conserje | G130: Area Hato Mayor | H130: Unap jalonga | I130: 5,000.00 | J130: 143.50 | K130: 152.00 | N130: 4,704.50 | O130: 2022-10-01
A131: 22 | B131: DULCE MARIA | C131: DOMINGUEZ PEÑA | D131: 027-0046696-0 | E131: 960-5265766 | F131: Conserje | G131: Area Hato Mayor | H131: Unap Km 15 | I131: 5,000.00 | J131: 143.50 | K131: 152.00 | N131: 4,704.50 | O131: 2022-10-01
A132: 23 | B132: IRMA GRISEL | C132: REYES FELICIANO | D132: 027-0012399-1 | E132: 960-5265765 | F132: Conserje | G132: Area Hato Mayor | H132: Unap la Sierra | I132: 5,000.00 | J132: 143.50 | K132: 152.00 | N132: 4,704.50 | O132: 2022-10-01
A133: 24 | B133: RAFAEL | C133: FLOID POLICIA | D133: 402-1139481-8 | E133: 960-5354300 | F133: Sereno | G133: Area Hato Mayor | H133: Unap jalonga | I133: 5,000.00 | J133: 143.50 | K133: 152.00 | N133: 4,704.50 | O133: 2022-11-01
A134: 25 | B134: JULIO ADRIANO | C134: DIAZ ACOSTA | D134: 067-0013604-4 | E134: 9605408903 | F134: Sereno | G134: Area Hato Mayor | H134: Unap Magua | I134: 5,000.00 | J134: 143.50 | K134: 152.00 | N134: 4,704.50 | O134: 2022-12-01
A135: 26 | B135: JUAN | C135: JAVIER | D135: 027-0015148-9 | E135: 9606157607 | F135: Viglante | G135: Area Hato Mayor | H135: Unap jalonga | I135: 5,000.00 | J135: 143.50 | K135: 152.00 | N135: 4,704.50 | O135: 2023-08-01
A136: 27 | B136: ISMAEL | C136: GARCIA SEVERINO | D136: 402-1030578-1 | E136: 9606781220 | F136: Sereno | G136: Area Hato Mayor | H136: Yerba Buena | I136: 5,000.00 | J136: 143.50 | K136: 152.00 | N136: 4,704.50 | O136: 2024-02-01
A137: 28 | B137: PEDRITO | C137: DE LA ROSA RIVERA | D137: 067-00080978 | E137: 9608236031 | F137: VIGILANTE | G137: Area Hato Mayor | H137: ATENCION PRI LAS CAÑITAS | I137: 5,000.00 | J137: 143.50 | K137: 152.00 | N137: 4,704.50 | O137: 2025-02-01
B138: TOTAL NOMINA HATO MAYOR | I138: =SUM(I110:I137) -> 190,872.00 | J138: =SUM(J110:J137) -> 5,420.63 | K138: =SUM(K110:K137) -> 5,741.71 | M138: =SUM(M110:M135) -> 0.00 | N138: =SUM(N110:N137) -> 179,709.66
C141: LIC. YUDELKY JABALERA | H141: DR. RICARDO JULIO ROMERO
B142: ADMINISTRADORA | H142: DIRECTOR
B145: REGION V
B146: SAN PEDRO DE MACORIS, REPUBLICA DOMINICANA
B147: RNC 430041793
B148: NOMINA CORRESPONDIENTE AL 30 DE SEPTIEMBRE AÑO 2025
B149: PERSONAL AREA EL SEYBO | J149: S/S | K149: SFS | L149: ISR | M149: D/A
B150: NOMBRE | C150: APELLIDO | D150: CEDULA | E150: No. CUENTA | F150: CARGO | G150: DEPARTAMENTO | H150: LUGAR PRESTA SERVICIOS | I150: SUELDO BRUTO | J150: DEDUCCIONES | N150: SUELDO NETO | O150: FECHA
A151: 1 | B151: ANA MARIA | C151: VASQUEZ SANTANA | D151: 025-0041921-9 | E151: 200011110179067 | F151: Conserje | G151: Area el seibo | H151: Clinica las 500 | I151: 5,000.00 | J151: 143.50 | K151: 152.00 | N151: 4,704.50 | O151: 2007-06-01
A152: =A151+1 -> 2 | B152: OSVALDO ANTONIO | C152: CRUZ BERAS | D152: 402-2252146-6 | E152: 9607634259 | F152: Sereno | G152: Area el seibo | H152: Unap Los Franceses | I152: 5,000.00 | J152: 143.50 | K152: 152.00 | N152: 4,704.50 | O152: 2024-10-03
A153: =A152+1 -> 3 | B153: RAFAELA | C153: DIAZ DIAZ | D153: 025-0033097-8 | E153: 200011101294569 | F153: Conserje | G153: Area el seibo | H153: Clinica el Guaral | I153: 5,000.00 | J153: 143.50 | K153: 152.00 | N153: 4,704.50 | O153: 2009-08-14
A154: 4 | B154: YNIRIO MODESTO | C154: LEONARDO | D154: 025-0034927-5 | E154: 200011101393486 | F154: Sereno | G154: Area el seibo | H154: Unap el cerrito del seibo | I154: 5,000.00 | J154: 143.50 | K154: 152.00 | M154: 0.00 | N154: 4,704.50 | O154: 2011-01-01
A155: 5 | B155: AMPARO | C155: MOJICA | D155: 029-0010041-9 | E155: 200011101393554 | F155: Conserje | G155: Area el seibo | H155: Centro de zona Villa Guerrero | I155: 5,000.00 | J155: 143.50 | K155: 152.00 | N155: 4,704.50 | O155: 2011-01-01
A156: 6 | B156: SONIA ELENA | C156: PAREDES MARTINEZ | D156: 025-0008358-5 | E156: 200011101711741 | F156: Conserje | G156: Area el seibo | H156: Unap las guajabas | I156: 5,000.00 | J156: 143.50 | K156: 152.00 | N156: 4,704.50 | O156: 2016-04-01
A157: 7 | B157: LEONIDAS | C157: MOTA DE LA CRUZ | D157: 027-0034558-6 | E157: 200-01-110-176883-3 | F157: Conserje | G157: Area el seibo | H157: Unap las guajabas | I157: 5,000.00 | J157: =I157*2.87% -> 143.50 | K157: =I157*3.04% -> 152.00 | N157: =I157-J157-K157 -> 4,704.50 | O157: 2016-09-01
A158: 8 | B158: TATATIANA ROSANA | C158: AQUINO | D158: 402-3486379-9 | E158: 200-01-960-087688-5 | F158: Aux. de Farmacia | G158: Area el seibo | H158: Gerencia de area Seibo | I158: 9,835.00 | J158: 282.26 | K158: 298.98 | N158: =I158-J158-K158 -> 9,253.75 | O158: 2018-04-01
A159: 9 | B159: ANGELINA | C159: PEGUERO | D159: 029-0015408-5 | E159: 200-01-9603069101 | F159: Aux. de limpieza | G159: Area el seibo | H159: Unap la mina | I159: 5,000.00 | J159: 143.50 | K159: 152.00 | N159: =I159-J159-K159 -> 4,704.50 | O159: 2020-01-09
A160: 10 | B160: DIONILIA | C160: ZORRILLA | D160: 025-0009672-8 | E160: 200-01-9603798317 | F160: Conserje | G160: Area el seibo | H160: Unap Pedro Sanchez | I160: 5,000.00 | J160: 143.50 | K160: 152.00 | N160: 4,704.50 | O160: 2021-01-03
A161: 11 | B161: MILOSY ARACELIS | C161: BAEZ APONTE | D161: 025-0032466-6 | E161: 200-01-9603883495 | F161: Aux. de Enfermeria | G161: Area el seibo | H161: Unap Cañada del Agua | I161: 10,000.00 | J161: 287.00 | K161: 304.00 | N161: 9,409.00 | O161: 2021-01-07
A162: 12 | B162: CARMEN DOLORES | C162: GARCIA | D162: 023-0075496-3 | E162: 200-01-9604074136 | F162: Conserje | G162: Area el seibo | H162: Unap Villa Guerrero | I162: 5,000.00 | J162: 143.50 | K162: 152.00 | N162: 4,704.50 | O162: 2021-09-01
A163: 13 | B163: CANDIDA | C163: DE LA CRUZ | D163: 065-0019411-0 | E163: 200-01-9604074312 | F163: Conserje | G163: Area el seibo | H163: Unap Los Franceses | I163: 5,000.00 | J163: 143.50 | K163: 152.00 | N163: 4,704.50
A164: 14 | B164: LUCIA | C164: DE JESUS | D164: 029-0007400-2 | E164: 200-01-960484399-2 | F164: Conserje | G164: Area el seibo | H164: Unap el cedro de miches | I164: 5,000.00 | J164: 143.50 | K164: 152.00 | N164: 4,704.50 | O164: 2022-05-01
A165: 15 | B165: ANTONIO | C165: HERNANDEZ | D165: 025-0015700-9 | E165: 960-568646-3 | F165: Vigilante | G165: Area el seibo | H165: Unap Magarin | I165: 5,000.00 | J165: 143.50 | K165: 152.00 | N165: 4,704.50 | O165: 2023-03-01
A166: 16 | B166: DEMETRIO | C166: MEDINA | D166: 029-0009483-6 | E166: 960-5817459 | F166: Vigilante | G166: Area el seibo | H166: Unap el cerrito | I166: 5,000.00 | J166: 143.50 | K166: 152.00 | N166: 4,704.50 | O166: 2023-04-01
A167: 17 | B167: VIRGIA | C167: SANTANA MENDOZA | D167: 029-0016683-2 | F167: Conserje | G167: Area el seibo | H167: Unap La Gina | I167: 5,000.00 | J167: 143.50 | K167: 152.00 | N167: 4,704.50 | O167: 2024-06-06
A168: 18 | B168: LEIDI ARIELA | C168: DOROTEO VASQUEZ | D168: 402-2902338-3 | E168: 9607949203 | F168: Secretaria | G168: Area el seibo | H168: Gerencia de area | I168: 10,000.00 | J168: 287.00 | K168: 304.00 | N168: 9,409.00 | O168: 2025-01-03
A169: 19 | B169: JOHAN EMIL | C169: VARGAS DE LA CRUZ | D169: 402-09763685 | E169: 9608236032 | F169: DIGITADOR | G169: Area el seibo | H169: GERENCIA DE AREA | I169: 10,000.00 | J169: 287.00 | K169: 304.00 | N169: =I169-J169-K169 -> 9,409.00 | O169: 2025-03-01
A170: 20 | B170: ROSCAURIS LINAURIS | C170: VILORIO BAEZ | D170: 027-0048830-3 | E170: 9608498572 | F170: SOPORTE TECNICO | G170: Area el seibo | H170: GERENCIA DE AREA | I170: 30,000.00 | J170: 861.00 | K170: 912.00 | N170: =I170-J170-K170 -> 28,227.00 | O170: 2025-06-02
B171: TOTAL NOMINA EL SEIBO | I171: =SUM(I151:I170) -> 144,835.00 | J171: =SUM(J151:J170) -> 4,156.76 | K171: =SUM(K151:K170) -> 4,402.98 | L171: =SUM(L151:L168) -> 0.00 | M171: =SUM(M151:M168) -> 0.00 | N171: =SUM(N151:N170) -> 136,275.25
C174: LIC. YUDELKY JABALERA | H174: DR. RICARDO JULIO ROMERO
B175: ADMINISTRADORA | H175: DIRECTOR
B178: REGION V
B179: C/COLON No.28, CENTRO DE LA CIUDAD
B180: SAN PEDRO DE MACORIS, REPUBLICA DOMINICANA
B181: RNC 430041793
B183: NOMINA CORRESPONDIENTE AL 30 DE SEPTIEMBRE AÑO 2025
B184: PERSONAL LA ROMANA | J184: S/S | K184: SFS | L184: ISR | M184: D/A | N184: 0.00
B185: NOMBRE | C185: APELLIDO | D185: CEDULA | E185: No. CUENTA | F185: CARGO | G185: DEPARTAMENTO | H185: LUGAR PRESTA SERVICIOS | I185: SUELDO BRUTO | J185: DEDUCCIONES | N185: SUELDO NETO | O185: FECHA
A186: 1 | B186: SONIA MARGARITA | C186: HACEN MENOR | D186: 103-0005891-3 | E186: 200012700174020 | F186: Conserje | G186: Area Romana | H186: Clinica Higueral | I186: 5,000.00 | J186: 143.50 | K186: 152.00 | N186: 4,704.50 | O186: 2007-06-25
A187: =A186+1 -> 2 | B187: ANGELA | C187: MATEO VILLAR | D187: 026-0128058-5 | E187: 200011101189535 | F187: Conserje | G187: Area Romana | H187: Clinica Maria Trinidad Sanchez | I187: 5,000.00 | J187: 143.50 | K187: 152.00 | N187: 4,704.50 | O187: 2007-11-01
A188: =A187+1 -> 3 | B188: FRANCISCA | C188: NOLASCO | D188: 026-0031430-2 | E188: 200011101209541 | F188: Conserje | G188: Area Romana | H188: Unap Piedra Linda | I188: 5,000.00 | J188: 143.50 | K188: 152.00 | N188: 4,704.50 | O188: 2008-02-01
A189: 4 | B189: SANDRA | C189: CESPEDES PAYANO | D189: 026-0079070-9 | E189: 200011101209567 | F189: Conserje | G189: Area Romana | H189: Unap Cucama | I189: 5,000.00 | J189: 143.50 | K189: 152.00 | N189: 4,704.50 | O189: 2008-02-14
A190: 5 | B190: ROGELIO | C190: SOLANO SILVESTRE | D190: 026-0039613-5 | E190: 200011101253717 | F190: Sereno | G190: Area Romana | H190: Unap Los Mulos | I190: 5,000.00 | J190: 143.50 | K190: 152.00 | N190: 4,704.50 | O190: 2008-10-01
A191: 6 | B191: ELSA DEONI CIA | C191: MERCEDES ORTIZ | D191: 026-0045084-1 | E191: 200011101292147 | F191: Lic.Enfermeria | G191: Area Romana | H191: Clinica Higueral | I191: 10,000.00 | J191: =I191*2.87% -> 287.00 | K191: =I191*3.04% -> 304.00 | N191: =I191-J191-K191 -> 9,409.00 | O191: 2009-08-03
A192: 7 | B192: WANDA YUSIL | C192: DEL ROSARIO | D192: 026-0141280-8 | E192: 200011101318830 | F192: Aux. de Oficina | G192: Area Romana | H192: Clinica Villa Hermosa | I192: 5,000.00 | J192: 143.50 | K192: 152.00 | N192: 4,704.50 | O192: 2010-02-01
A193: 8 | B193: ENMA | C193: DE LOS SANTOS | D193: 026-0039834-7 | E193: 200011101326055 | F193: Conserje | G193: Area Romana | H193: UNAP Los Coco | I193: 5,000.00 | J193: 143.50 | K193: 152.00 | N193: 4,704.50 | O193: 2010-04-01
A194: 9 | B194: CARLOS ANT. | C194: CORDONES | D194: 295-0002936-7 | E194: 200011101479656 | F194: Sereno | G194: Area Romana | H194: UNAP KM 14 | I194: 5,000.00 | J194: 143.50 | K194: 152.00 | M194: 1,512.45 | N194: =I194-J194-K194-M194 -> 3,192.05 | O194: 2012-07-01
A195: 10 | B195: FERMIN | C195: RIJO | D195: 026-0061107-9 | E195: 200011101479481 | F195: Sereno | G195: Area Romana | H195: UNAP Luis J. Suarez | I195: 5,000.00 | J195: 143.50 | K195: 152.00 | N195: 4,704.50 | O195: 2012-08-01
A196: 11 | B196: DINORA E | C196: RAMIREZ DE LA CRUZ | D196: 026-0037001-5 | E196: 200011101561205 | F196: Seccretaria | G196: Area Romana | H196: Oficina area Romana | I196: 20,400.00 | J196: =I196*2.87% -> 585.48 | K196: =I196*3.04% -> 620.16 | M196: 0 | N196: =I196-J196-K196-M196 -> 19,194.36 | O196: 2014-03-01
A197: 12 | B197: MARGARITO | C197: CUETO ROSARIO | D197: 026-0043627-9 | E197: 200011101561218 | F197: Sereno | G197: Area Romana | H197: Clinica Villa Hermosa | I197: 5,000.00 | J197: 143.50 | K197: 152.00 | N197: 4,704.50 | O197: 2014-03-01
A198: 13 | B198: RAMONA GERTRUDIS | C198: HUNT S. | D198: 026-0044901-7 | E198: 200011101630699 | F198: Aux de farmacia | G198: Area Romana | H198: Unap Luis J. Suarez | I198: 7,750.00 | J198: 222.43 | K198: 235.60 | N198: 7,291.98 | O198: 2014-10-01
A199: 14 | B199: PROFECTA | C199: ACOSTA FERMIN | D199: 065-0018087-9 | E199: 20001110176884-6 | F199: Conserje | G199: Area Romana | H199: Unap Saona | I199: 5,000.00 | J199: 143.50 | K199: 152.00 | N199: 4,704.50 | O199: 2016-10-01
A200: 15 | B200: DOMINGA | C200: MEJIA | D200: 026-0079667-2 | E200: 20001110176885-9 | F200: Promotara | G200: Area Romana | H200: Unap conani | I200: 5,000.00 | J200: 143.50 | K200: 152.00 | N200: 4,704.50 | O200: 2016-12-01
A201: 16 | B201: MARIANO | C201: ANTONIO MARTE | D201: 026-0054441-1 | E201: 20001210107826-4 | F201: Sereno | G201: Area Romana | H201: Unap villa verde | I201: 5,000.00 | J201: 143.50 | K201: 152.00 | N201: 4,704.50 | O201: 2015-11-01
A202: 17 | B202: DAISY MARIA | C202: DE LEON FELIX | D202: 023-0088812-6 | E202: 200-01-960048617-0 | F202: Conserje | G202: Area Romana | H202: Unap villa hermosa | I202: 5,000.00 | J202: =I202*2.87% -> 143.50 | K202: =I202*3.04% -> 152.00 | N202: =I202-J202-K202 -> 4,704.50 | O202: 2017-08-01
A203: 18 | B203: LIDIA S. | C203: FLORIMON | D203: 001-0414442-3 | E203: 200-01-960049850-5 | F203: Promotora de salud | G203: Area Romana | H203: Oficina area Romana | I203: 5,000.00 | J203: 143.50 | K203: 152.00 | N203: 4,704.50 | O203: 2017-11-01
A204: 19 | B204: FELICITA | C204: AGUSTIN MIGUEL | D204: 103-0000358-8 | E204: 200-01-960029984-0 | F204: Enfermera | G204: Area Romana | H204: Hosp. Guaymate | I204: 7,000.00 | J204: 200.90 | K204: 212.80 | N204: =I204-J204-K204 -> 6,586.30 | O204: 2018-03-01
A205: 20 | B205: DEIVI | C205: SILVESTRE DE LA CRUZ | D205: 026-0120654-9 | E205: 200-01-960180785-8 | F205: Sereno | G205: Area Romana | H205: Unap la caleta | I205: 5,000.00 | J205: 143.50 | K205: 152.00 | N205: 4,704.50 | O205: 2019-11-01
A206: 21 | B206: JOSEFA | C206: PADUA | D206: 026-0123563-9 | E206: 200-01-960180786-2 | F206: Conserje | G206: Area Romana | H206: Unap la caleta | I206: 5,000.00 | J206: 143.50 | K206: 152.00 | N206: 4,704.50 | O206: 2019-01-01
A207: 22 | B207: GLORIA | C207: JIMENEZ MEDINA | D207: 026-0135201-2 | E207: 200-01-960180785-9 | F207: Bionalista | G207: Area Romana | H207: Hosp. Luis J.Suarez | I207: 11,000.00 | J207: 315.70 | K207: 334.40 | N207: 10,349.90 | O207: 2019-02-01
A208: 23 | B208: FERNANDO ABAD | C208: GREGORIO SCROGGNS | D208: 026-0119903-3 | E208: 200-01-9603066262 | F208: sereno | G208: Area Romana | H208: Unap caleta | I208: 5,000.00 | J208: 143.5 | K208: 152 | N208: =SUM(I208-J208-K208) -> 4,704.50 | O208: 2019-07-01
A209: 24 | B209: JOSE | C209: ANUAL | D209: 093-0014276-8 | E209: 200-01-9603066261 | F209: Sereno | G209: Area Romana | H209: Unap Juan Pablo Duarte | I209: 10,000.00 | J209: 287 | K209: 304 | N209: 9,409.00 | O209: 2019-10-01
A210: 25 | B210: LUIS ALBERTO | C210: YAN | D210: 402-4366450-1 | E210: 200-01-9603066266 | F210: Sereno | G210: Area Romana | H210: Unap villa hermosa | I210: 10,000.00 | J210: 287 | K210: 304 | N210: 9,409.00 | O210: 2025-10-01
A211: 26 | B211: FRANCIA | C211: CARABALLO | D211: 026-0036110-5 | E211: 200-01-9603066264 | F211: Enfermera | G211: Area Romana | H211: Unap isla saona | I211: 17,936.00 | J211: 514.7632 | K211: 545.2544 | N211: =SUM(I211-J211-K211) -> 16,875.98 | O211: 2019-10-01
A212: 27 | B212: INAGCIO | C212: MORALES | D212: 025-0013949-4 | E212: 200-01-9603403019 | F212: Sereno | G212: Area Romana | H212: Unap villa Hermosa 3 | I212: 5,000.00 | J212: 143.50 | K212: 152.00 | N212: 4,704.50 | O212: 2021-02-01
A213: 28 | B213: ANA IRIS | C213: MEJIA | D213: 026-0108536-4 | E213: 200-01-9603798316 | F213: Conserje | G213: Area Romana | H213: CPN Villa hermosa | I213: 5,000.00 | J213: 143.50 | K213: 152.00 | N213: 4,704.50 | O213: 2021-01-06
... 44 more rows
